fUST/lending_fUST_20250812
["ID","MTS","AMOUNT","RATE_DAILY","PERIOD"]
[378675002,1754955055444,-417.15472785,0.00019534,2]
[378675003,1754955055453,-12671.21867243,0.00019534,2]
[378675004,1754955055463,-200.0,0.00019542,15]
[378675005,1754955055473,-200.0,0.00019542,15]
[378675006,1754955055482,-200.0,0.00019542,15]
[378675007,1754955055491,-200.0,0.00019542,15]
[378675008,1754955055501,-407.0,0.00019591,2]
[378675009,1754955055511,-151.0,0.00019593,2]
[378675010,1754955055520,-151.0,0.00019593,2]
[378675011,1754955055530,-481.843651,0.00019593,2]
[378675012,1754955055539,-152.310469,0.00019593,2]
[378675013,1754955055548,-247.998215,0.00019613,15]
[378675014,1754955055558,-275.30608065,0.00019626,2]
[378675015,1754955055567,-168.0,0.00019675,2]
[378675016,1754955055577,-1300.0,0.00019712,2]
[378675017,1754955055586,-151.0,0.00019712,2]
[378675018,1754955055596,-207.83573585,0.00019712,2]
[378675019,1754955055606,-151.0,0.00019712,2]
[378675020,1754955055615,-151.0,0.00019712,2]
[378675021,1754955055625,-1000.0,0.00019721,2]
[378675022,1754955055635,-1000.0,0.00019721,2]
[378675023,1754955055645,-1000.0,0.00019721,2]
[378675024,1754955055654,-1000.0,0.00019721,2]
[378675025,1754955055664,-1000.0,0.00019721,2]
[378675026,1754955055673,-501.0,0.00019721,2]
[378675027,1754955055683,-201.64324224,0.00019725,2]
[378675028,1754955055692,-262.92559148,0.00019726,2]
[378675029,1754955055703,-423.6212444,0.00019726,2]
[378675030,1754955055713,-153.0496871,0.00019726,2]
[378675031,1754955055722,-224.40282027,0.00019726,2]
[378675032,1754955055732,-208.0,0.00019726,2]
[378675033,1754955055742,-151.0,0.00019726,2]
[378675034,1754955055752,-151.0,0.00019726,2]
[378675035,1754955055761,-151.0,0.00019726,2]
[378675036,1754955055771,-585.13973901,0.00019726,2]
[378675037,1754955055780,-151.0,0.00019726,2]
[378675038,1754955055790,-151.0,0.00019726,2]
[378675039,1754955055800,-500.0,0.00019726,2]
[378675040,1754955055809,-500.0,0.00019726,2]
[378675041,1754955055819,-151.0,0.00019726,2]
[378675042,1754955055828,-500.0,0.00019726,2]
[378675043,1754955055837,-500.0,0.00019726,2]
[378675044,1754955055847,-500.0,0.00019726,2]
[378675045,1754955055856,-151.0,0.00019726,2]
[378675046,1754955055866,-151.0,0.00019726,2]
[378675047,1754955055875,-500.0,0.00019726,2]
[378675048,1754955055884,-557.0,0.00019726,2]
[378675049,1754955055893,-500.0,0.00019726,2]
[378675050,1754955055903,-500.0,0.00019726,2]
[378675051,1754955055913,-500.0,0.00019726,2]
[378675052,1754955055922,-151.0,0.00019726,2]
[378675053,1754955055932,-151.0,0.00019726,2]
[378675054,1754955055941,-151.0,0.00019726,2]
[378675055,1754955055951,-206.31777,0.00019726,2]
[378675056,1754955055960,-222.983312,0.00019726,2]
[378675057,1754955055970,-222.983312,0.00019726,2]
[378675058,1754955055979,-222.983312,0.00019726,2]
[378675059,1754955055989,-222.983312,0.00019726,2]
[378675060,1754955055999,-151.0,0.00019726,2]
[378675061,1754955056013,-151.0,0.00019726,2]
[378675062,1754955056022,-460.0,0.00019726,2]
[378675063,1754955056033,-460.0,0.00019726,2]
[378675064,1754955056042,-460.0,0.00019726,2]
[378675065,1754955056052,-460.0,0.00019726,2]
[378675066,1754955056061,-460.0,0.00019726,2]
[378675067,1754955056071,-151.0,0.00019726,2]
[378675068,1754955056080,-151.0,0.00019726,2]
[378675069,1754955056090,-460.0,0.00019726,2]
[378675070,1754955056100,-406.07562561,0.00019726,2]
[378675071,1754955056110,-460.0,0.00019726,2]
[378675072,1754955056119,-460.0,0.00019726,2]
[378675073,1754955056129,-460.0,0.00019726,2]
[378675074,1754955056139,-151.0,0.00019726,2]
[378675075,1754955056148,-460.0,0.00019726,2]
[378675076,1754955056158,-460.0,0.00019726,2]
[378675077,1754955056167,-460.0,0.00019726,2]
[378675078,1754955056177,-221.76112064,0.00019726,2]
[378675079,1754955056187,-460.0,0.00019726,2]
[378675080,1754955056199,-460.0,0.00019726,2]
[378675081,1754955056213,-460.0,0.00019726,2]
[378675082,1754955056223,-460.0,0.00019726,2]
[378675083,1754955056232,-460.0,0.00019726,2]
[378675084,1754955056243,-460.0,0.00019726,2]
[378675085,1754955056252,-460.0,0.00019726,2]
[378675086,1754955056264,-460.0,0.00019726,2]
[378675087,1754955056275,-460.0,0.00019726,2]
[378675088,1754955056285,-460.0,0.00019726,2]
[378675089,1754955056295,-460.0,0.00019726,2]
[378675090,1754955056306,-460.0,0.00019726,2]
[378675091,1754955056315,-1047.82,0.00019726,2]
[378675092,1754955056325,-460.0,0.00019726,2]
[378675093,1754955056335,-151.0,0.00019726,2]
[378675094,1754955056344,-250.038032,0.00019726,2]
[378675095,1754955056354,-460.0,0.00019726,2]
[378675096,1754955056364,-460.0,0.00019726,2]
[378675097,1754955056374,-460.0,0.00019726,2]
[378675098,1754955056384,-787.06,0.00019726,2]
[378675099,1754955056394,-594.98208201,0.00019726,2]
[378675100,1754955056404,-151.0,0.00019726,2]
[378675101,1754955056414,-151.0,0.00019726,2]
[378675102,1754955056424,-151.0,0.00019726,2]
[378675103,1754955056601,-151.747423,0.00019726,2]
[378675104,1754955056610,-460.0,0.00019726,2]
[378675105,1754955056620,-460.0,0.00019726,2]
[378675106,1754955056629,-460.0,0.00019726,2]
[378675107,1754955056639,-460.0,0.00019726,2]
[378675108,1754955056648,-460.0,0.00019726,2]
[378675109,1754955056658,-4399.44,0.00019726,2]
[378675110,1754955056667,-460.0,0.00019726,2]
[378675111,1754955056677,-512.97,0.00019726,2]
[378675112,1754955056686,-361.08311554,0.00019726,2]
[378675113,1754955056696,-492.43620659,0.00019726,2]
[378675114,1754955056706,-460.0,0.00019726,2]
[378675115,1754955056715,-460.0,0.00019726,2]
[378675116,1754955056725,-310.06418619,0.00019726,2]
[378675117,1754955056735,-151.0,0.00019726,2]
[378675118,1754955056744,-151.0,0.00019726,2]
[378675119,1754955056754,-151.69258288,0.00019726,2]
[378675120,1754955056766,-460.0,0.00019726,2]
[378675121,1754955056775,-462.64367269,0.00019726,2]
[378675122,1754955056785,-460.0,0.00019726,2]
[378675123,1754955056794,-460.0,0.00019726,2]
[378675124,1754955056803,-460.0,0.00019726,2]
[378675125,1754955056812,-151.0,0.00019726,2]
[378675126,1754955056822,-151.0,0.00019726,2]
[378675127,1754955056831,-460.0,0.00019726,2]
[378675128,1754955056840,-460.0,0.00019726,2]
[378675129,1754955056850,-151.0,0.00019726,2]
[378675130,1754955056859,-151.0,0.00019726,2]
[378675131,1754955056868,-460.0,0.00019726,2]
[378675132,1754955056878,-465.54300267,0.00019726,2]
[378675133,1754955056887,-460.0,0.00019726,2]
[378675134,1754955056898,-460.0,0.00019726,2]
[378675135,1754955056907,-460.0,0.00019726,2]
[378675136,1754955056917,-460.0,0.00019726,2]
[378675137,1754955056928,-460.0,0.00019726,2]
[378675138,1754955056937,-460.0,0.00019726,2]
[378675139,1754955056946,-151.0,0.00019726,2]
[378675140,1754955056955,-151.0,0.00019726,2]
[378675141,1754955056965,-151.0,0.00019726,2]
[378675142,1754955056974,-151.0,0.00019726,2]
[378675143,1754955056983,-460.0,0.00019726,2]
[378675144,1754955056993,-460.0,0.00019726,2]
[378675145,1754955057002,-151.0,0.00019726,2]
[378675146,1754955057014,-460.0,0.00019726,2]
[378675147,1754955057023,-460.0,0.00019726,2]
[378675148,1754955057034,-460.0,0.00019726,2]
[378675149,1754955057044,-460.0,0.00019726,2]
[378675150,1754955057052,-151.0,0.00019726,2]
[378675151,1754955057063,-460.0,0.00019726,2]
[378675152,1754955057073,-460.0,0.00019726,2]
[378675153,1754955057082,-463.15122904,0.00019726,2]
[378675154,1754955057091,-460.0,0.00019726,2]
[378675155,1754955057101,-460.0,0.00019726,2]
[378675156,1754955057112,-460.0,0.00019726,2]
[378675157,1754955057122,-570.02383383,0.00019726,2]
[378675158,1754955057131,-460.0,0.00019726,2]
[378675159,1754955057140,-460.0,0.00019726,2]
[378675160,1754955057150,-467.26458395,0.00019726,2]
[378675161,1754955057159,-460.0,0.00019726,2]
[378675162,1754955057168,-460.0,0.00019726,2]
[378675163,1754955057177,-460.0,0.00019726,2]
[378675164,1754955057186,-460.0,0.00019726,2]
[378675165,1754955057196,-460.0,0.00019726,2]
[378675166,1754955057209,-573.82,0.00019726,2]
[378675167,1754955057218,-778.99,0.00019726,2]
[378675168,1754955057227,-151.0,0.00019726,2]
[378675169,1754955057237,-151.0,0.00019726,2]
[378675170,1754955057247,-400.0,0.00019726,3]
[378675171,1754955057257,-460.0,0.00019726,2]
[378675172,1754955057266,-503.96,0.00019726,2]
[378675173,1754955057277,-460.0,0.00019726,2]
[378675174,1754955057287,-460.0,0.00019726,2]
[378675175,1754955057297,-460.0,0.00019726,2]
[378675176,1754955057307,-3414.16,0.00019726,2]
[378675177,1754955057318,-604.49,0.00019726,2]
[378675178,1754955057327,-460.0,0.00019726,2]
[378675179,1754955057337,-653.64,0.00019726,2]
[378675180,1754955057347,-460.0,0.00019726,2]
[378675181,1754955057356,-460.0,0.00019726,2]
[378675182,1754955057366,-460.0,0.00019726,2]
[378675183,1754955057376,-1103.66,0.00019726,2]
[378675184,1754955057386,-481.843651,0.00019726,2]
[378675185,1754955057395,-460.0,0.00019726,2]
[378675186,1754955057405,-460.0,0.00019726,2]
[378675187,1754955057414,-476.27,0.00019726,2]
[378675188,1754955057424,-557.03,0.00019726,2]
[378675189,1754955057433,-460.0,0.00019726,2]
[378675190,1754955057445,-460.0,0.00019726,2]
[378675191,1754955057455,-460.0,0.00019726,2]
[378675192,1754955057464,-460.0,0.00019726,2]
[378675193,1754955057476,-470.91817191,0.00019726,2]
[378675194,1754955057486,-460.0,0.00019726,2]
[378675195,1754955057496,-531.34,0.00019726,2]
[378675196,1754955057506,-460.0,0.00019726,2]
[378675197,1754955057515,-460.0,0.00019726,2]
[378675198,1754955057525,-1045.58,0.00019726,2]
[378675199,1754955057536,-460.0,0.00019726,2]
[378675200,1754955057546,-1231.31,0.00019726,2]
[378675201,1754955057555,-460.0,0.00019726,2]
[378675202,1754955057567,-551.983057,0.00019726,2]
[378675203,1754955057577,-460.0,0.00019726,2]
[378675204,1754955057587,-460.0,0.00019726,2]
[378675205,1754955057596,-551.983057,0.00019726,2]
[378675206,1754955057605,-608.38242068,0.00019726,2]
[378675207,1754955057616,-547.31,0.00019726,2]
[378675208,1754955057625,-1601.52,0.00019726,2]
[378675209,1754955057634,-681.35,0.00019726,2]
[378675210,1754955057644,-460.0,0.00019726,2]
[378675211,1754955057653,-460.0,0.00019726,2]
[378675212,1754955057663,-1294.07,0.00019726,2]
[378675213,1754955057672,-460.0,0.00019726,2]
[378675214,1754955057682,-460.0,0.00019726,2]
[378675215,1754955057692,-460.0,0.00019726,2]
[378675216,1754955057701,-460.0,0.00019726,2]
[378675217,1754955057711,-1293.15,0.00019726,2]
[378675218,1754955057721,-151.0,0.00019726,2]
[378675219,1754955057730,-151.0,0.00019726,2]
[378675220,1754955057739,-460.0,0.00019726,2]
[378675221,1754955057749,-460.0,0.00019726,2]
[378675222,1754955057759,-780.56,0.00019726,2]
[378675223,1754955057768,-460.0,0.00019726,2]
[378675224,1754955057777,-460.0,0.00019726,2]
[378675225,1754955057787,-151.0,0.00019726,2]
[378675226,1754955057797,-834.56,0.00019726,2]
[378675227,1754955057806,-460.0,0.00019726,2]
[378675228,1754955057815,-713.95,0.00019726,2]
[378675229,1754955057824,-318.50767335,0.00019726,2]
[378675230,1754955057833,-460.0,0.00019726,2]
[378675231,1754955057843,-227.234988,0.00019726,2]
[378675232,1754955057852,-460.0,0.00019726,2]
[378675233,1754955057862,-1090.77,0.00019726,2]
[378675234,1754955057871,-460.0,0.00019726,2]
[378675235,1754955057880,-460.0,0.00019726,2]
[378675236,1754955057890,-160.805127,0.00019726,2]
[378675237,1754955057899,-3122.33,0.00019726,2]
[378675238,1754955057909,-151.0,0.00019726,2]
[378675239,1754955057918,-151.0,0.00019726,2]
[378675240,1754955057927,-460.0,0.00019726,2]
[378675241,1754955057936,-460.0,0.00019726,2]
[378675242,1754955057946,-460.0,0.00019726,2]
[378675243,1754955057955,-460.0,0.00019726,2]
[378675244,1754955057964,-460.0,0.00019726,2]
[378675245,1754955057974,-460.0,0.00019726,2]
[378675246,1754955057983,-460.0,0.00019726,2]
[378675247,1754955057994,-484.78552915,0.00019726,2]
[378675248,1754955058005,-691.26,0.00019726,2]
[378675249,1754955058014,-460.0,0.00019726,2]
[378675250,1754955058024,-460.0,0.00019726,2]
[378675251,1754955058033,-460.0,0.00019726,2]
[378675252,1754955058042,-460.0,0.00019726,2]
[378675253,1754955058051,-460.0,0.00019726,2]
[378675254,1754955058061,-460.0,0.00019726,2]
[378675255,1754955058071,-460.0,0.00019726,2]
[378675256,1754955058080,-460.0,0.00019726,2]
[378675257,1754955058089,-496.32,0.00019726,2]
[378675258,1754955058098,-460.0,0.00019726,2]
[378675259,1754955058107,-460.0,0.00019726,2]
[378675260,1754955058117,-460.0,0.00019726,2]
[378675261,1754955058126,-460.0,0.00019726,2]
[378675262,1754955058135,-460.0,0.00019726,2]
[378675263,1754955058144,-460.0,0.00019726,2]
[378675264,1754955058154,-569.91,0.00019726,2]
[378675265,1754955058163,-460.0,0.00019726,2]
[378675266,1754955058172,-580.22694274,0.00019726,2]
[378675267,1754955058181,-460.0,0.00019726,2]
[378675268,1754955058191,-3516.79,0.00019726,2]
[378675269,1754955058203,-460.0,0.00019726,2]
[378675270,1754955058216,-460.0,0.00019726,2]
[378675271,1754955058225,-1821.58,0.00019726,2]
[378675272,1754955058234,-460.0,0.00019726,2]
[378675273,1754955058243,-754.45,0.00019726,2]
[378675274,1754955058253,-460.0,0.00019726,2]
[378675275,1754955058263,-460.0,0.00019726,2]
[378675276,1754955058273,-460.0,0.00019726,2]
[378675277,1754955058282,-460.0,0.00019726,2]
[378675278,1754955058292,-460.0,0.00019726,2]
[378675279,1754955058302,-460.0,0.00019726,2]
[378675280,1754955058311,-460.0,0.00019726,2]
[378675281,1754955058321,-460.0,0.00019726,2]
[378675282,1754955058330,-460.0,0.00019726,2]
[378675283,1754955058340,-460.0,0.00019726,2]
[378675284,1754955058349,-797.5,0.00019726,2]
[378675285,1754955058359,-961.63,0.00019726,2]
[378675286,1754955058369,-460.0,0.00019726,2]
[378675287,1754955058378,-460.0,0.00019726,2]
[378675288,1754955058388,-460.0,0.00019726,2]
[378675289,1754955058397,-527.33,0.00019726,2]
[378675290,1754955058407,-737.27,0.00019726,2]
[378675291,1754955058416,-504.04,0.00019726,2]
[378675292,1754955058426,-1109.57,0.00019726,2]
[378675293,1754955058435,-460.0,0.00019726,2]
[378675294,1754955058445,-151.0,0.00019726,2]
[378675295,1754955058454,-151.0,0.00019726,2]
[378675296,1754955058463,-471.38,0.00019726,2]
[378675297,1754955058473,-151.0,0.00019726,2]
[378675298,1754955058483,-460.0,0.00019726,2]
[378675299,1754955058492,-151.0,0.00019726,2]
[378675300,1754955058501,-460.0,0.00019726,2]
[378675301,1754955058512,-460.0,0.00019726,2]
[378675302,1754955058521,-460.0,0.00019726,2]
[378675303,1754955058531,-460.0,0.00019726,2]
[378675304,1754955058540,-480.13,0.00019726,2]
[378675305,1754955058550,-606.27,0.00019726,2]
[378675306,1754955058559,-151.0,0.00019726,2]
[378675307,1754955058569,-1677.77,0.00019726,2]
[378675308,1754955058578,-158.323129,0.00019726,2]
[378675309,1754955058587,-151.0,0.00019726,2]
[378675310,1754955058596,-151.0,0.00019726,2]
[378675311,1754955058606,-855.8,0.00019726,2]
[378675312,1754955058615,-759.37,0.00019726,2]
[378675313,1754955058624,-151.0,0.00019726,2]
[378675314,1754955058634,-260.221094,0.00019726,2]
[378675315,1754955058643,-436.361586,0.00019726,2]
[378675316,1754955058653,-436.361586,0.00019726,2]
[378675317,1754955058662,-460.0,0.00019726,2]
[378675318,1754955058672,-1348.9,0.00019726,2]
[378675319,1754955058681,-436.361586,0.00019726,2]
[378675320,1754955058691,-436.361586,0.00019726,2]
[378675321,1754955058701,-460.0,0.00019726,2]
[378675322,1754955058711,-463.59,0.00019726,2]
[378675323,1754955058720,-1223.15,0.00019726,2]
[378675324,1754955058729,-548.56,0.00019726,2]
[378675325,1754955058739,-460.0,0.00019726,2]
[378675326,1754955058748,-676.43,0.00019726,2]
[378675327,1754955058757,-460.0,0.00019726,2]
[378675328,1754955058767,-460.0,0.00019726,2]
[378675329,1754955058776,-460.0,0.00019726,2]
[378675330,1754955058785,-460.0,0.00019726,2]
[378675331,1754955058794,-337.074339,0.00019726,2]
[378675332,1754955058803,-337.074339,0.00019726,2]
[378675333,1754955058813,-460.0,0.00019726,2]
[378675334,1754955058822,-337.074339,0.00019726,2]
[378675335,1754955058832,-337.074339,0.00019726,2]
[378675336,1754955058841,-460.0,0.00019726,2]
[378675337,1754955058850,-2848.58,0.00019726,2]
[378675338,1754955058859,-460.0,0.00019726,2]
[378675339,1754955058914,-460.0,0.00019726,2]
[378675340,1754955058923,-460.0,0.00019726,2]
[378675341,1754955058932,-151.0,0.00019726,2]
[378675342,1754955058941,-151.0,0.00019726,2]
[378675343,1754955058950,-973.9,0.00019726,2]
[378675344,1754955058958,-460.0,0.00019726,2]
[378675345,1754955058967,-460.0,0.00019726,2]
[378675346,1754955058976,-2083.85,0.00019726,2]
[378675347,1754955058985,-697.65,0.00019726,2]
[378675348,1754955058994,-460.0,0.00019726,2]
[378675349,1754955059005,-460.0,0.00019726,2]
[378675350,1754955059014,-658.96,0.00019726,2]
[378675351,1754955059023,-460.0,0.00019726,2]
[378675352,1754955059032,-460.0,0.00019726,2]
[378675353,1754955059041,-460.0,0.00019726,2]
[378675354,1754955059050,-460.0,0.00019726,2]
[378675355,1754955059060,-3984.186465,0.00019726,2]
[378675356,1754955059069,-3984.186465,0.00019726,2]
[378675357,1754955059078,-460.0,0.00019726,2]
[378675358,1754955059087,-460.0,0.00019726,2]
[378675359,1754955059096,-3984.186465,0.00019726,2]
[378675360,1754955059105,-3984.186465,0.00019726,2]
[378675361,1754955059114,-460.0,0.00019726,2]
[378675362,1754955059123,-460.0,0.00019726,2]
[378675363,1754955059132,-460.0,0.00019726,2]
[378675364,1754955059141,-460.0,0.00019726,2]
[378675365,1754955059149,-797.18,0.00019726,2]
[378675366,1754955059159,-460.0,0.00019726,2]
[378675367,1754955059168,-460.0,0.00019726,2]
[378675368,1754955059177,-460.0,0.00019726,2]
[378675369,1754955059186,-460.0,0.00019726,2]
[378675370,1754955059197,-460.0,0.00019726,2]
[378675371,1754955059207,-1181.68,0.00019726,2]
[378675372,1754955059217,-460.0,0.00019726,2]
[378675373,1754955059226,-460.0,0.00019726,2]
[378675374,1754955059236,-460.0,0.00019726,2]
[378675375,1754955059244,-1487.11,0.00019726,2]
[378675376,1754955059253,-460.0,0.00019726,2]
[378675377,1754955059263,-460.0,0.00019726,2]
[378675378,1754955059272,-151.0,0.00019726,2]
[378675379,1754955059282,-460.0,0.00019726,2]
[378675380,1754955059292,-151.0,0.00019726,2]
[378675381,1754955059302,-460.0,0.00019726,2]
[378675382,1754955059311,-460.0,0.00019726,2]
[378675383,1754955059320,-460.0,0.00019726,2]
[378675384,1754955059330,-600.11,0.00019726,2]
[378675385,1754955059339,-460.0,0.00019726,2]
[378675386,1754955059348,-1872.76,0.00019726,2]
[378675387,1754955059357,-488.83,0.00019726,2]
[378675388,1754955059367,-591.63,0.00019726,2]
[378675389,1754955059375,-460.0,0.00019726,2]
[378675390,1754955059385,-460.0,0.00019726,2]
[378675391,1754955059394,-988.77,0.00019726,2]
[378675392,1754955059403,-2887.48,0.00019726,2]
[378675393,1754955059412,-489.52,0.00019726,2]
[378675394,1754955059421,-1373.19,0.00019726,2]
[378675395,1754955059430,-482.28639257,0.00019726,2]
[378675396,1754955059439,-151.0,0.00019726,2]
[378675397,1754955059448,-151.0,0.00019726,2]
[378675398,1754955059457,-1447.43,0.00019726,2]
[378675399,1754955059466,-460.0,0.00019726,2]
[378675400,1754955059475,-460.0,0.00019726,2]
[378675401,1754955059485,-465.32414651,0.00019726,2]
[378675402,1754955059494,-460.0,0.00019726,2]
[378675403,1754955059503,-460.0,0.00019726,2]
[378675404,1754955059513,-460.0,0.00019726,2]
[378675405,1754955059522,-500.0,0.00019726,2]
[378675406,1754955059532,-1024.38,0.00019726,2]
[378675407,1754955059541,-460.0,0.00019726,2]
[378675408,1754955059551,-460.0,0.00019726,2]
[378675409,1754955059560,-460.0,0.00019726,2]
[378675410,1754955059569,-1242.454206,0.00019726,2]
[378675411,1754955059578,-1242.454206,0.00019726,2]
[378675412,1754955059587,-1078.1,0.00019726,2]
[378675413,1754955059596,-460.0,0.00019726,2]
[378675414,1754955059605,-1242.454206,0.00019726,2]
[378675415,1754955059614,-460.0,0.00019726,2]
[378675416,1754955059623,-1242.454206,0.00019726,2]
[378675417,1754955059633,-460.0,0.00019726,2]
[378675418,1754955059642,-460.0,0.00019726,2]
[378675419,1754955059651,-460.0,0.00019726,2]
[378675420,1754955059661,-552.59,0.00019726,2]
[378675421,1754955059670,-460.0,0.00019726,2]
[378675422,1754955059680,-1415.51,0.00019726,2]
[378675423,1754955059689,-460.0,0.00019726,2]
[378675424,1754955059698,-460.0,0.00019726,2]
[378675425,1754955059707,-187.028429,0.00019726,2]
[378675426,1754955059717,-187.028429,0.00019726,2]
[378675427,1754955059727,-460.0,0.00019726,2]
[378675428,1754955059735,-460.0,0.00019726,2]
[378675429,1754955059745,-187.028429,0.00019726,2]
[378675430,1754955059755,-460.0,0.00019726,2]
[378675431,1754955059766,-187.028429,0.00019726,2]
[378675432,1754955059776,-511.47,0.00019726,2]
[378675433,1754955059785,-595.42,0.00019726,2]
[378675434,1754955059794,-1816.97,0.00019726,2]
[378675435,1754955059804,-460.0,0.00019726,2]
[378675436,1754955059814,-1217.06,0.00019726,2]
[378675437,1754955059825,-3422.58,0.00019726,2]
[378675438,1754955059836,-644.27,0.00019726,2]
[378675439,1754955059846,-460.0,0.00019726,2]
[378675440,1754955059854,-460.0,0.00019726,2]
[378675441,1754955059863,-1181.81,0.00019726,2]
[378675442,1754955059872,-683.34,0.00019726,2]
[378675443,1754955059882,-460.0,0.00019726,2]
[378675444,1754955059891,-460.0,0.00019726,2]
[378675445,1754955059900,-460.0,0.00019726,2]
[378675446,1754955059910,-460.0,0.00019726,2]
[378675447,1754955059919,-1922.55,0.00019726,2]
[378675448,1754955059928,-460.0,0.00019726,2]
[378675449,1754955059937,-262.48677597,0.00019726,2]
[378675450,1754955059946,-151.0,0.00019726,2]
[378675451,1754955059955,-460.0,0.00019726,2]
[378675452,1754955059965,-151.0,0.00019726,2]
[378675453,1754955059974,-747.82,0.00019726,2]
[378675454,1754955059983,-460.0,0.00019726,2]
[378675455,1754955059992,-460.0,0.00019726,2]
[378675456,1754955060001,-151.0,0.00019726,2]
[378675457,1754955060011,-460.0,0.00019726,2]
[378675458,1754955060020,-460.0,0.00019726,2]
[378675459,1754955060029,-460.0,0.00019726,2]
[378675460,1754955060039,-460.0,0.00019726,2]
[378675461,1754955060049,-2379.82,0.00019726,2]
[378675462,1754955060058,-357.05511494,0.00019726,2]
[378675463,1754955060068,-460.0,0.00019726,2]
[378675464,1754955060078,-634.84,0.00019726,2]
[378675465,1754955060087,-460.0,0.00019726,2]
[378675466,1754955060097,-522.72509993,0.00019726,2]
[378675467,1754955060107,-2493.15,0.00019726,2]
[378675468,1754955060118,-460.0,0.00019726,2]
[378675469,1754955060129,-460.0,0.00019726,2]
[378675470,1754955060139,-460.0,0.00019726,2]
[378675471,1754955060149,-460.0,0.00019726,2]
[378675472,1754955060158,-460.0,0.00019726,2]
[378675473,1754955060167,-682.35,0.00019726,2]
[378675474,1754955060177,-460.0,0.00019726,2]
[378675475,1754955060186,-493.35,0.00019726,2]
[378675476,1754955060198,-460.0,0.00019726,2]
[378675477,1754955060207,-460.0,0.00019726,2]
[378675478,1754955060217,-694.26,0.00019726,2]
[378675479,1754955060226,-460.0,0.00019726,2]
[378675480,1754955060235,-509.99994878,0.00019726,2]
[378675481,1754955060244,-460.0,0.00019726,2]
[378675482,1754955060253,-779.21,0.00019726,2]
[378675483,1754955060264,-460.0,0.00019726,2]
[378675484,1754955060273,-1012.76,0.00019726,2]
[378675485,1754955060284,-460.0,0.00019726,2]
[378675486,1754955060293,-490.65,0.00019726,2]
[378675487,1754955060302,-460.0,0.00019726,2]
[378675488,1754955060311,-460.0,0.00019726,2]
[378675489,1754955060320,-1397.25,0.00019726,2]
[378675490,1754955060329,-6570.4,0.00019726,2]
[378675491,1754955060339,-460.0,0.00019726,2]
[378675492,1754955060348,-460.0,0.00019726,2]
[378675493,1754955060357,-379.94422402,0.00019726,2]
[378675494,1754955060366,-460.0,0.00019726,2]
[378675495,1754955060375,-460.0,0.00019726,2]
[378675496,1754955060385,-4183.75,0.00019726,2]
[378675497,1754955060394,-460.0,0.00019726,2]
[378675498,1754955060403,-460.0,0.00019726,2]
[378675499,1754955060413,-460.0,0.00019726,2]
[378675500,1754955060423,-460.0,0.00019726,2]
[378675501,1754955060432,-460.0,0.00019726,2]